fUSD/lending_fUSD_20260512
["ID","MTS","AMOUNT","RATE_DAILY","PERIOD"]
[422094018,1778570173000,-500.0,0.00014999,2]
[422094015,1778570173000,-9500.01,0.00015,2]
[422094016,1778570173000,-150.0,0.00013364,2]
[422094017,1778570173000,-150.0,0.00013987,2]
[422094026,1778570174000,-249.0,0.00011439,2]
[422094028,1778570174000,-195.16732431,0.000149,2]
[422094024,1778570174000,-150.0,0.00011219,2]
[422094025,1778570174000,-150.0,0.00011329,2]
[422094023,1778570174000,-150.0,0.00011109,2]
[422094022,1778570174000,-10000.01,0.00015,2]
[422094020,1778570174000,-236.10530687,0.00014999,2]
[422094021,1778570174000,-9763.90469313,0.00015,2]
[422094027,1778570174000,-1000.0,0.00013341,2]
[422094033,1778570175000,-9540.81409044,0.00015,2]
[422094029,1778570175000,-8105.84267569,0.00015,2]
[422094031,1778570175000,-157.19590956,0.00013488,2]
[422094030,1778570175000,-151.0,0.00013488,2]
[422094032,1778570175000,-151.0,0.00013488,2]
[422094034,1778570175000,-250.0,0.00011769,2]
[422094036,1778570175000,-420.0,0.00013247,2]
[422094037,1778570175000,-420.0,0.00013247,2]
[422094035,1778570175000,-170.0,0.00013247,2]
[422094038,1778570176000,-420.0,0.00013247,2]
[422094039,1778570176000,-420.0,0.00013247,2]
[422094040,1778570176000,-2.42,0.00013247,2]
[422094041,1778570176000,-152.49,0.00013247,2]
[422094043,1778570176000,-47.8,0.00013247,2]
[422094045,1778570176000,-173.2521338,0.000149,2]
[422094044,1778570176000,-198.9478662,0.000149,2]
[422094046,1778570176000,-420.0,0.000149,2]
[422094042,1778570176000,-265.09,0.00013247,2]
[422094047,1778570177000,-5375.22,0.000149,2]
[422094049,1778570177000,-1208.39214547,0.000149,2]
[422094051,1778570177000,-1880.15410698,0.00015,2]
[422094050,1778570177000,-518.90185754,0.00014999,2]
[422094053,1778570177000,-229.0,0.00013246,2]
[422094048,1778570177000,-1767.77189001,0.000149,2]
[422094055,1778570177000,-150.0,0.0001383,2]
[422094054,1778570177000,-2000.0,0.00013278,2]
[422094056,1778570177000,-1680.0,0.00014571,2]
[422094057,1778570177000,-116.22,0.000149,2]
[422094058,1778570177000,-5375.22,0.000149,2]
[422094059,1778570177000,-5375.22,0.000149,2]
[422094052,1778570177000,-1200.0,0.00013246,2]
[422094062,1778570178000,-350.0015087,0.000149,2]
[422094061,1778570178000,-150.0,0.00011341,2]
[422094060,1778570178000,-5375.22,0.000149,2]
[422094063,1778570359000,-300.0,0.0001222,2]
[422094064,1778570542000,-300.0,0.000149,2]
[422094066,1778570542000,-300.0,0.000149,2]
[422094065,1778570542000,-300.0,0.000149,2]
[422094070,1778570543000,-100.0,0.00014086,2]
[422094069,1778570543000,-200.0,0.00013442,2]
[422094068,1778570543000,-50.0,0.00013442,2]
[422094067,1778570543000,-250.0,0.00012896,2]
[422094076,1778570544000,297.39,8.176e-05,2]
[422094072,1778570544000,-100.0,0.00014086,2]
[422094071,1778570544000,-200.0,0.00014086,2]
[422094073,1778570544000,297.39,7.425e-05,2]
[422094075,1778570544000,294.78,7.801e-05,2]
[422094074,1778570544000,2.61,7.801e-05,2]
[422094077,1778570544000,297.39,8.552e-05,2]
[422094086,1778570544000,-2.61,0.00011931,2]
[422094079,1778570544000,297.39,9.303e-05,2]
[422094080,1778570544000,297.39,9.678e-05,2]
[422094081,1778570544000,297.39,0.00010054,2]
[422094082,1778570544000,297.39,0.00010429,2]
[422094083,1778570544000,297.39,0.00010805,2]
[422094084,1778570544000,297.39,0.0001118,2]
[422094085,1778570544000,-297.39,0.00011556,2]
[422094078,1778570544000,297.39,8.927e-05,2]
[422094088,1778570545000,-5.22,0.00012307,2]
[422094087,1778570545000,-294.78,0.00011931,2]
[422094090,1778570545000,-7.83,0.00012682,2]
[422094093,1778570545000,-300.0,0.00012782,2]
[422094092,1778570545000,-10.44,0.00012782,2]
[422094091,1778570545000,-289.56,0.00012682,2]
[422094094,1778570545000,-300.0,0.00012782,2]
[422094089,1778570545000,-292.17,0.00012307,2]
[422094098,1778570546000,-300.0,0.00012782,2]
[422094097,1778570546000,-300.0,0.00012782,2]
[422094096,1778570546000,262.0,7.649e-05,2]
[422094095,1778570546000,150.0,7.574e-05,2]
[422094106,1778570547000,-552.76,0.00013485,2]
[422094102,1778570547000,-14.2600188,0.00012843,2]
[422094105,1778570547000,-297.39,0.00013433,2]
[422094100,1778570547000,-538.4999812,0.00012843,2]
[422094103,1778570547000,-297.39,0.00013058,2]
[422094101,1778570547000,-445.94,0.00012636,2]
[422094107,1778570547000,-135.1899624,0.00013806,2]
[422094099,1778570547000,-1757.19,0.00012782,2]
[422094104,1778570547000,-552.76,0.00013164,2]
[422094109,1778570547000,-297.39,0.00013809,2]
[422094111,1778570547000,-253.08279409,0.00014086,2]
[422094110,1778570547000,-250.0,0.00014,2]
[422094113,1778570547000,-297.39,0.00014184,2]
[422094112,1778570547000,-552.76,0.00014127,2]
[422094114,1778570547000,-150.0,0.00014184,2]
[422094115,1778570547000,-77.49714951,0.000145,5]
[422094118,1778570547000,-600.0,0.000147,5]
[422094116,1778570547000,-122.50285049,0.000145,5]
[422094117,1778570547000,-400.0,0.000146,5]
[422094119,1778570547000,-1173.18713071,0.00014741,2]
[422094108,1778570547000,-417.5700376,0.00013806,2]
[422094120,1778570548000,-1200.0,0.00012781,2]
[422094122,1778570548000,-795.6899812,0.00014059,2]
[422094124,1778570548000,-2150.3799624,0.00014741,2]
[422094123,1778570548000,-145.3100188,0.00014059,2]
[422094125,1778570548000,-2295.6899812,0.00014741,2]
[422094121,1778570548000,-300.0,0.00013432,2]
[422094130,1778570549000,-1717.1100188,0.00013374,2]
[422094131,1778570549000,-408.3699624,0.00014741,2]
[422094129,1778570549000,-170.21,0.00013004,2]
[422094128,1778570549000,-2295.6899812,0.00013374,2]
[422094127,1778570549000,-2295.6899812,0.00014741,2]
[422094126,1778570549000,-2295.6899812,0.00014741,2]
[422094132,1778570550000,-2295.6899812,0.00014741,2]
[422094133,1778570550000,-2295.6899812,0.00014741,2]
[422094136,1778570550000,-2295.6899812,0.00014741,2]
[422094135,1778570550000,-1795.6899812,0.00014741,2]
[422094134,1778570550000,-500.0,0.0001261,2]
[422094138,1778570987000,250.0,9.154e-05,2]
[422094139,1778570988000,-300.0,0.0001474,2]
[422094140,1778570988000,-9700.01,0.00014741,2]
[422094141,1778570989000,-10000.01,0.0001407,2]
[422094144,1778570989000,-10000.01,0.0001407,2]
[422094142,1778570989000,-150.0,0.00014069,2]
[422094143,1778570989000,-9850.01,0.0001407,2]
[422094147,1778570990000,-10000.01,0.0001407,2]
[422094146,1778570990000,-10000.01,0.0001407,2]
[422094145,1778570990000,-10000.01,0.0001407,2]
[422094150,1778570991000,-8649.83121082,0.0001407,2]
[422094149,1778570991000,-1200.0,0.00014069,2]
[422094148,1778570991000,-150.17878918,0.00013488,2]
[422094151,1778570992000,-150.6370443,0.00013488,2]
[422094154,1778570992000,-150.0,0.00013488,2]
[422094152,1778570992000,-150.0,0.00013488,2]
[422094153,1778570992000,-150.0,0.00013488,2]
[422094159,1778570992000,-150.0,0.00013702,2]
[422094156,1778570992000,-150.0,0.00013488,2]
[422094155,1778570992000,-150.0,0.00013488,2]
[422094160,1778570992000,-150.0,0.00013702,2]
[422094158,1778570992000,-150.0,0.00013595,2]
[422094162,1778570992000,-150.0,0.00013916,2]
[422094161,1778570992000,-150.0,0.00013809,2]
[422094163,1778570992000,-150.0,0.00013916,2]
[422094165,1778570992000,-150.0,0.00014023,2]
[422094164,1778570992000,-150.0,0.00013987,2]
[422094166,1778570992000,-7749.3729557,0.0001407,2]
[422094157,1778570992000,-150.0,0.00013488,2]
[422094177,1778570993000,-150.0,0.00013597,2]
[422094180,1778570993000,-150.0,0.00013652,2]
[422094184,1778570993000,-150.0,0.00013689,2]
[422094181,1778570993000,-150.0,0.00013654,2]
[422094183,1778570993000,-150.0,0.0001367,2]
[422094182,1778570993000,-150.0,0.00013654,2]
[422094178,1778570993000,-150.0,0.00013616,2]
[422094185,1778570993000,-150.0,0.00013707,2]
[422094186,1778570993000,-150.0,0.00013725,2]
[422094179,1778570993000,-150.0,0.00013634,2]
[422094173,1778570993000,-150.0,0.00013542,2]
[422094174,1778570993000,-150.0,0.00013561,2]
[422094175,1778570993000,-150.0,0.00013571,2]
[422094168,1778570993000,-150.0,0.00013488,2]
[422094170,1778570993000,-150.0,0.00013488,2]
[422094171,1778570993000,-150.0,0.00013506,2]
[422094169,1778570993000,-150.0,0.00013488,2]
[422094172,1778570993000,-150.0,0.00013524,2]
[422094167,1778570993000,-1000.0,0.00012951,2]
[422094187,1778570993000,-150.0,0.00013737,2]
[422094176,1778570993000,-150.0,0.00013579,2]
[422094189,1778570993000,-150.0,0.00013762,2]
[422094198,1778570993000,-150.0,0.0001389,2]
[422094188,1778570993000,-150.0,0.00013744,2]
[422094205,1778570993000,-150.0,0.00013987,2]
[422094209,1778570993000,-150.0,0.00014036,2]
[422094211,1778570993000,-2550.01,0.0001407,2]
[422094202,1778570993000,-150.0,0.00013945,2]
[422094203,1778570993000,-150.0,0.00013963,2]
[422094201,1778570993000,-150.0,0.00013926,2]
[422094208,1778570993000,-150.0,0.00014018,2]
[422094207,1778570993000,-150.0,0.00013999,2]
[422094204,1778570993000,-150.0,0.00013981,2]
[422094190,1778570993000,-150.0,0.0001378,2]
[422094206,1778570993000,-150.0,0.00013987,2]
[422094199,1778570993000,-150.0,0.00013904,2]
[422094197,1778570993000,-150.0,0.00013871,2]
[422094195,1778570993000,-150.0,0.00013835,2]
[422094194,1778570993000,-150.0,0.00013821,2]
[422094192,1778570993000,-150.0,0.00013817,2]
[422094210,1778570993000,-150.0,0.00014054,2]
[422094196,1778570993000,-150.0,0.00013853,2]
[422094193,1778570993000,-150.0,0.00013821,2]
[422094191,1778570993000,-150.0,0.00013798,2]
[422094200,1778570993000,-150.0,0.00013908,2]
[422094213,1778570994000,-10000.01,0.0001407,2]
[422094212,1778570994000,-10000.01,0.0001407,2]
[422094215,1778570994000,-9364.72,0.0001407,2]
[422094216,1778570994000,-10000.01,0.0001407,2]
[422094214,1778570994000,-635.29,0.00012842,2]
[422094220,1778570995000,-10000.01,0.0001407,2]
[422094219,1778570995000,-10000.01,0.0001407,2]
[422094218,1778570995000,-8147.59,0.0001407,2]
[422094217,1778570995000,-1852.42,0.00012836,2]
[422094222,1778570996000,-10000.01,0.0001407,2]
[422094221,1778570996000,-10000.01,0.0001407,2]
[422094223,1778570997000,-10000.01,0.0001407,2]
[422094226,1778570997000,-10000.01,0.0001407,2]
[422094225,1778570997000,-10000.01,0.0001407,2]
[422094224,1778570997000,-10000.01,0.0001407,2]
[422094227,1778570998000,-166.66,0.00013699,2]
[422094230,1778570998000,-9500.03,0.0001407,2]
[422094228,1778570998000,-166.66,0.0001387,2]
[422094229,1778570998000,-166.66,0.00014041,2]
[422094235,1778570998000,-459.59,0.00012832,2]
[422094231,1778570998000,-10000.01,0.0001407,2]
[422094233,1778570998000,-10000.01,0.0001407,2]
[422094234,1778570998000,-10000.01,0.0001407,2]
[422094236,1778570998000,-9540.42,0.0001407,2]
[422094232,1778570998000,-10000.01,0.0001407,2]
[422094237,1778570999000,-10000.01,0.0001407,2]
[422094532,1778571363000,-500.0,0.00014069,2]
[422094533,1778571363000,-222.2381938,0.00014069,2]
[422094534,1778571363000,-500.0,0.00014069,2]
[422094537,1778571363000,232.24624792,0.00027397,120]
[422094536,1778571363000,-8585.95960896,0.0001407,2]
[422094535,1778571363000,-191.81219724,0.00014069,2]
[422094538,1778571363000,-419.83398401,0.00013897,2]
[422094539,1778571363000,-9580.17601599,0.0001406,2]
[422094540,1778571364000,249.80640517,0.00027397,120]
[422094541,1778571364000,180.82823415,0.00011818,30]
[422094543,1778571364000,-300.0,0.00014069,2]
[422094554,1778571364000,-1193.43520554,0.00014069,2]
[422094545,1778571364000,-150.0,0.00014069,2]
[422094544,1778571364000,-1200.0,0.00014069,2]
[422094546,1778571364000,-500.0,0.00014069,2]
[422094542,1778571364000,-157.0,0.00014069,2]
[422094555,1778571364000,-2520.46676029,0.0001407,2]
[422094548,1778571364000,-500.0,0.00014069,2]
[422094553,1778571364000,-1193.43520554,0.00014069,2]
[422094550,1778571364000,-500.0,0.00014069,2]
[422094552,1778571364000,-591.75437749,0.00014069,2]
[422094549,1778571364000,-193.91845114,0.00014069,2]
[422094551,1778571364000,-500.0,0.00014069,2]
[422094547,1778571364000,-500.0,0.00014069,2]
[422094570,1778571365000,-1193.43520554,0.00014069,2]
[422094571,1778571365000,-1193.43520554,0.00014069,2]
[422094566,1778571365000,-1193.43520554,0.00014069,2]
[422094572,1778571365000,-1193.43520554,0.00014069,2]
[422094569,1778571365000,-1193.43520554,0.00014069,2]
[422094576,1778571365000,-1193.43520554,0.00014069,2]
[422094587,1778571365000,-1193.43520554,0.00014069,2]
[422094579,1778571365000,-1193.43520554,0.00014069,2]
[422094578,1778571365000,-1193.43520554,0.00014069,2]
[422094584,1778571365000,-1193.43520554,0.00014069,2]
[422094573,1778571365000,-1193.43520554,0.00014069,2]
[422094577,1778571365000,-1193.43520554,0.00014069,2]
[422094567,1778571365000,-1193.43520554,0.00014069,2]
[422094562,1778571365000,-1193.43520554,0.00014069,2]
[422094564,1778571365000,-1193.43520554,0.00014069,2]
[422094574,1778571365000,-1193.43520554,0.00014069,2]
[422094575,1778571365000,-1193.43520554,0.00014069,2]
[422094565,1778571365000,-1193.43520554,0.00014069,2]
[422094563,1778571365000,-1193.43520554,0.00014069,2]
[422094561,1778571365000,-1193.43520554,0.00014069,2]
[422094560,1778571365000,-1193.43520554,0.00014069,2]
[422094557,1778571365000,-185.32,0.00013366,2]
[422094558,1778571365000,-150.0,0.00013615,2]
[422094559,1778571365000,-1193.43520554,0.00014069,2]
[422094556,1778571365000,-600.0,0.00013366,2]
[422094582,1778571365000,-1193.43520554,0.00014069,2]
[422094568,1778571365000,-1193.43520554,0.00014069,2]
[422094583,1778571365000,-1193.43520554,0.00014069,2]
[422094599,1778571365000,-1193.43520554,0.00014069,2]
[422094580,1778571365000,-1193.43520554,0.00014069,2]
[422094585,1778571365000,-1193.43520554,0.00014069,2]
[422094613,1778571365000,-2300.90000003,0.0001407,2]
[422094611,1778571365000,-58148.20927159,0.0001407,2]
[422094612,1778571365000,-3358.56748689,0.0001407,2]
[422094609,1778571365000,-124297.0685114,0.0001407,2]
[422094610,1778571365000,-71824.68016369,0.0001407,2]
[422094600,1778571365000,-1193.43520554,0.00014069,2]
[422094605,1778571365000,-1193.43520554,0.00014069,2]
[422094606,1778571365000,-1193.43520554,0.00014069,2]
[422094608,1778571365000,-1193.43520554,0.00014069,2]
[422094607,1778571365000,-1193.43520554,0.00014069,2]
[422094603,1778571365000,-1193.43520554,0.00014069,2]
[422094602,1778571365000,-1193.43520554,0.00014069,2]
[422094601,1778571365000,-1193.43520554,0.00014069,2]
[422094604,1778571365000,-1193.43520554,0.00014069,2]
[422094595,1778571365000,-1193.43520554,0.00014069,2]
[422094581,1778571365000,-1193.43520554,0.00014069,2]
[422094586,1778571365000,-1193.43520554,0.00014069,2]
[422094597,1778571365000,-1193.43520554,0.00014069,2]
[422094589,1778571365000,-1193.43520554,0.00014069,2]
[422094588,1778571365000,-1193.43520554,0.00014069,2]
[422094598,1778571365000,-1193.43520554,0.00014069,2]
[422094590,1778571365000,-1193.43520554,0.00014069,2]
[422094594,1778571365000,-1193.43520554,0.00014069,2]
[422094592,1778571365000,-1193.43520554,0.00014069,2]
[422094596,1778571365000,-1193.43520554,0.00014069,2]
[422094593,1778571365000,-1193.43520554,0.00014069,2]
[422094591,1778571365000,-1193.43520554,0.00014069,2]
[422094634,1778571366000,-1190.20970499,0.00014069,2]
[422094642,1778571366000,-1190.20970499,0.00014069,2]
[422094636,1778571366000,-1190.20970499,0.00014069,2]
[422094638,1778571366000,-1190.20970499,0.00014069,2]
[422094639,1778571366000,-1190.20970499,0.00014069,2]
[422094635,1778571366000,-1190.20970499,0.00014069,2]
[422094641,1778571366000,-1190.20970499,0.00014069,2]
[422094640,1778571366000,-1190.20970499,0.00014069,2]
[422094644,1778571366000,-1190.20970499,0.00014069,2]
[422094653,1778571366000,-150.0,0.00014091,2]
[422094645,1778571366000,-1190.20970499,0.00014069,2]
[422094647,1778571366000,-1190.20970499,0.00014069,2]
[422094648,1778571366000,-1190.20970499,0.00014069,2]
[422094656,1778571366000,-150.0,0.0001413,2]
[422094654,1778571366000,-150.0,0.00014109,2]
[422094650,1778571366000,-367109.21314893,0.0001407,2]
[422094655,1778571366000,-150.0,0.00014127,2]
[422094637,1778571366000,-1190.20970499,0.00014069,2]
[422094646,1778571366000,-1190.20970499,0.00014069,2]
[422094632,1778571366000,-1190.20970499,0.00014069,2]
[422094621,1778571366000,-1190.20970499,0.00014069,2]
[422094633,1778571366000,-1190.20970499,0.00014069,2]
[422094649,1778571366000,-1190.20970499,0.00014069,2]
[422094615,1778571366000,-1190.20970499,0.00014069,2]
[422094617,1778571366000,-1190.20970499,0.00014069,2]
[422094614,1778571366000,-1190.20970499,0.00014069,2]
[422094616,1778571366000,-1190.20970499,0.00014069,2]
[422094619,1778571366000,-1190.20970499,0.00014069,2]
[422094618,1778571366000,-1190.20970499,0.00014069,2]
[422094620,1778571366000,-1190.20970499,0.00014069,2]
[422094643,1778571366000,-1190.20970499,0.00014069,2]
[422094622,1778571366000,-478.33236008,0.00014069,2]
[422094625,1778571366000,-1190.20970499,0.00014069,2]
[422094623,1778571366000,-711.87734491,0.00014069,2]
[422094627,1778571366000,-482.50311891,0.00014069,2]
[422094628,1778571366000,-171.45501778,0.00014069,2]
[422094626,1778571366000,-707.70658608,0.00014069,2]
[422094630,1778571366000,-719.21468721,0.00014069,2]
[422094629,1778571366000,-299.54,0.00014069,2]
[422094631,1778571366000,-1190.20970499,0.00014069,2]
[422094624,1778571366000,-1190.20970499,0.00014069,2]
[422094651,1778571366000,-150.0,0.0001407,2]
[422094691,1778571366000,-150.0,0.00014487,2]
[422094657,1778571366000,-150.0,0.0001413,2]
[422094680,1778571366000,-150.0,0.00014365,2]
[422094683,1778571366000,-150.0,0.00014401,2]
[422094682,1778571366000,-166.66,0.00014384,2]
[422094684,1778571366000,-150.0,0.00014404,2]
[422094685,1778571366000,-150.0,0.0001442,2]
[422094686,1778571366000,-150.0,0.00014438,2]
[422094688,1778571366000,-150.0,0.00014456,2]
[422094687,1778571366000,-150.0,0.00014451,2]
[422094681,1778571366000,-150.0,0.00014383,2]
[422094689,1778571366000,-150.0,0.00014475,2]
[422094693,1778571366000,-150.0,0.00014493,2]
[422094695,1778571366000,-150.0,0.00014511,2]
[422094697,1778571366000,-150.0,0.00014548,2]
[422094699,1778571366000,-150.0,0.00014558,2]
[422094696,1778571366000,-150.0,0.00014529,2]
[422094694,1778571366000,-400.0,0.000145,5]
[422094698,1778571366000,-150.0,0.00014558,2]
[422094652,1778571366000,-150.0,0.00014073,2]
[422094690,1778571366000,-150.0,0.00014487,2]
[422094674,1778571366000,-150.0,0.0001432,2]
[422094692,1778571366000,-150.0,0.00014487,2]
[422094673,1778571366000,-150.0,0.0001431,2]
[422094668,1778571366000,-150.0,0.00014237,2]
[422094675,1778571366000,-150.0,0.0001432,2]
[422094658,1778571366000,-150.0,0.00014146,2]
[422094667,1778571366000,-150.0,0.00014237,2]
[422094661,1778571366000,-150.0,0.00014164,2]
[422094663,1778571366000,-4302.0,0.000142,3]
[422094660,1778571366000,-150.0,0.00014154,2]
[422094659,1778571366000,-150.0,0.00014154,2]
[422094665,1778571366000,-166.66,0.00014212,2]
[422094664,1778571366000,-150.0,0.000142,2]
[422094666,1778571366000,-150.0,0.00014219,2]
[422094669,1778571366000,-150.0,0.00014237,2]
[422094670,1778571366000,-150.0,0.00014255,2]
[422094679,1778571366000,-150.0,0.00014347,2]
[422094671,1778571366000,-150.0,0.00014274,2]
[422094676,1778571366000,-150.0,0.00014328,2]
[422094672,1778571366000,-150.0,0.00014292,2]
[422094662,1778571366000,-150.0,0.00014182,2]
[422094677,1778571366000,-150.0,0.00014344,2]
[422094678,1778571366000,-150.0,0.00014344,2]
[422094742,1778571367000,-150.0,0.0001482,2]
[422094739,1778571367000,-5530.0,0.000148,5]
[422094735,1778571367000,-500.62640559,0.00014773,2]
[422094733,1778571367000,-500.0,0.00014773,2]
[422094732,1778571367000,-504.16185047,0.00014773,2]
[422094736,1778571367000,-500.0,0.00014773,2]
[422094734,1778571367000,-500.0,0.00014773,2]
[422094743,1778571367000,-150.0,0.0001482,2]
[422094729,1778571367000,-150.0,0.00014772,2]
[422094730,1778571367000,-500.0,0.00014773,2]
[422094731,1778571367000,-500.0,0.00014773,2]
[422094741,1778571367000,-150.0,0.00014804,2]
[422094753,1778571367000,-150.0,0.00014931,2]
[422094747,1778571367000,-150.0,0.00014877,2]
[422094746,1778571367000,-150.0,0.00014858,2]
[422094740,1778571367000,-1900.0,0.000148,5]
[422094744,1778571367000,-150.0,0.00014822,2]
[422094745,1778571367000,-150.0,0.0001484,2]
[422094748,1778571367000,-150.0,0.00014879,2]
[422094751,1778571367000,-150.0,0.00014903,2]
[422094750,1778571367000,-2400.0,0.000149,5]
[422094752,1778571367000,-150.0,0.00014913,2]
[422094754,1778571367000,-2000.0,0.00014937,2]
[422094756,1778571367000,-150.0,0.00014968,2]
[422094728,1778571367000,-150.0,0.00014772,2]
[422094749,1778571367000,-150.0,0.00014895,2]
[422094726,1778571367000,-150.0,0.00014749,2]
[422094708,1778571367000,-1058.67,0.00014635,2]
[422094737,1778571367000,-500.0,0.00014773,2]
[422094757,1778571367000,-500.0,0.00014973,2]
[422094700,1778571367000,-150.0,0.00014566,2]
[422094702,1778571367000,-150.0,0.0001457,2]
[422094703,1778571367000,-150.0,0.00014584,2]
[422094704,1778571367000,-900.0,0.000146,5]
[422094707,1778571367000,-482.87,0.00014635,2]
[422094706,1778571367000,-150.0,0.00014621,2]
[422094710,1778571367000,-1215.039,0.00014641,2]
[422094713,1778571367000,-150.0,0.00014657,2]
[422094705,1778571367000,-150.0,0.00014603,2]
[422094709,1778571367000,-150.0,0.00014639,2]
[422094711,1778571367000,-150.0,0.00014653,2]
[422094738,1778571367000,-150.0,0.00014785,2]
[422094712,1778571367000,-150.0,0.00014653,2]
[422094725,1778571367000,-54938.45738459,0.00014741,2]
[422094714,1778571367000,-150.0,0.00014665,2]
[422094716,1778571367000,-150.0,0.00014694,2]
[422094717,1778571367000,-517.45474826,0.000147,2]
[422094720,1778571367000,-266.928766,0.000147,2]
[422094718,1778571367000,-5710.464686,0.000147,2]
[422094722,1778571367000,-150.0,0.00014712,2]
[422094719,1778571367000,-501.642422,0.000147,2]
[422094723,1778571367000,-150.0,0.0001473,2]
[422094721,1778571367000,-1400.0,0.000147,5]
[422094724,1778571367000,-150.0,0.00014737,2]
[422094727,1778571367000,-150.0,0.00014767,2]
[422094715,1778571367000,-150.0,0.00014676,2]
[422094758,1778571367000,-500.0,0.00014973,2]
[422094777,1778571367000,-1315869.95705574,0.00015,2]
[422094759,1778571367000,-501.92255243,0.00014973,2]
[422094789,1778571367000,-654.400014,0.00015,2]
[422094790,1778571367000,-654.400014,0.00015,2]
[422094791,1778571367000,-654.400014,0.00015,2]
[422094794,1778571367000,-448.648598,0.00015068,2]
[422094792,1778571367000,-654.400014,0.00015,2]
[422094795,1778571367000,-448.648598,0.00015068,2]
[422094806,1778571367000,-420.0,0.00015412,2]
[422094796,1778571367000,-448.648598,0.00015068,2]
[422094797,1778571367000,-448.648598,0.00015068,2]
[422094798,1778571367000,-150.0,0.00015068,2]
[422094799,1778571367000,-170.21,0.0001515,2]
[422094803,1778571367000,-208.29546343,0.00015321,2]
[422094801,1778571367000,-1000.0,0.00015321,2]
[422094800,1778571367000,-255.0,0.00015195,2]
[422094804,1778571367000,-1000.0,0.00015321,2]
[422094805,1778571367000,-1000.0,0.00015321,2]
[422094802,1778571367000,-1000.0,0.00015321,2]
[422094808,1778571367000,-1000.0,0.00015521,2]
[422094807,1778571367000,-1236.6538261,0.000155,2]
[422094810,1778571367000,-3630.8550876,0.00015718,2]
[422094811,1778571367000,-1413.5,0.00015749,2]
[422094815,1778571367000,-373.27912327,0.00016068,2]
[422094812,1778571367000,-210.98529741,0.00015868,2]
[422094814,1778571367000,-1500.0,0.00015868,2]
[422094809,1778571367000,-250.0,0.00015616,2]
[422094793,1778571367000,-654.400014,0.00015,2]
[422094787,1778571367000,-654.400014,0.00015,2]
[422094755,1778571367000,-150.0,0.0001495,2]
[422094786,1778571367000,-654.400014,0.00015,2]
[422094788,1778571367000,-654.400014,0.00015,2]
[422094761,1778571367000,-152.38538152,0.00014986,2]
[422094762,1778571367000,-150.0,0.00014986,2]
[422094760,1778571367000,-500.0,0.00014973,2]
[422094764,1778571367000,-150.00000001,0.00014986,2]
[422094765,1778571367000,-162.85603374,0.00014986,2]
[422094766,1778571367000,-224.50300913,0.00014986,2]
[422094767,1778571367000,-150.0,0.00014986,2]
[422094768,1778571367000,-151.0,0.00014997,2]
[422094769,1778571367000,-239.755,0.00014998,2]
[422094773,1778571367000,-500.0,0.00014999,2]
[422094772,1778571367000,-519.18646536,0.00014999,2]
[422094771,1778571367000,-1094.38604953,0.00014999,5]
[422094763,1778571367000,-150.0,0.00014986,2]
[422094775,1778571367000,-398.73967682,0.00014999,2]
[422094770,1778571367000,-500.0,0.00014999,5]
[422094785,1778571367000,-248.7294813,0.00015,2]
[422094783,1778571367000,-246.469525,0.00015,2]
[422094782,1778571367000,-151.0,0.00015,2]
[422094780,1778571367000,-1029149.15115331,0.00015,2]
[422094781,1778571367000,-151.0,0.00015,2]
[422094778,1778571367000,-1535244.45651012,0.00015,2]
[422094784,1778571367000,-151.0,0.00015,2]